Cogmind - Beta 17 @@@ ROGUE MODE // 2026.07.16 @ 22:25:26 Player: Lazz Result: Destroyed by H-66 Slayer with Heavy Assault Rifle Performance ------------- Evolutions (5) 2500 Regions Visited (10) 2000 Robots Destroyed (73) 365 Value Destroyed (2640) 2640 Prototype IDs (4) 80 Alien Tech Used (0) 0 Bonus (2835) 2835 TOTAL SCORE: 10420 Bonus ------- Follower Combat Kills 85 Entered DSFs 500 MAIN.C Attacked Warlord 500 Warlord Defense Kills 1750 Cogmind --------- Core Integrity 0/1000 Matter 300/300 Energy 44/100 System Corruption 1% Temperature Cool (0) Movement Treading (170) Location -5/Warlord Parts ------- > --- POWER (2) -------- (None) > --- PROPULSION (5) --- Armored Medium Treads Armored Medium Treads > --- UTILITY (6) ------ Improved Armor Integrity Analyzer Improved Armor Integrity Analyzer > --- WEAPON (4) ------- (None) > --- INVENTORY (5) ---- Advanced Heat Sink Backup Laser III Vortex Rail (40) Vortex Rail (40) Plasma Cutter Peak State ------------ > --- POWER ------------ Improved Deuterium Engine Light Angular Momentum Engine > --- PROPULSION ------- Armored Medium Treads Armored Medium Treads Armored Medium Treads Carbon-fiber Leg Myomer Leg > --- UTILITY ---------- Advanced Visual Processing Unit Long-range Terrain Scanner Improved Armor Integrity Analyzer Improved Armor Integrity Analyzer Improved Propulsion Shielding Advanced Shield Generator > --- WEAPON ----------- Beamcaster Beamcaster Vortex Catalyst Activator > --- INVENTORY -------- Advanced Heat Sink Backup Laser III Vortex Rail Vortex Rail Plasma Cutter [Rating: 100] Favorites ----------- Power Heavy Ion Engine Engine Heavy Ion Engine Power Core Nuclear Core Propulsion Improved Treads Treads Improved Treads Leg Carbon-fiber Leg Wheel Compact Wheel Hover Unit Backup Propulsion III Utility Advanced Visual Processing Unit Device IFF Parser Storage Large Storage Unit Processor Advanced Visual Processing Unit Protection Hardened Medium Armor Plating Weapon Advanced Assault Cannon Energy Gun Backup Laser III Ballistic Cannon Advanced Assault Cannon Launcher Vortex Catalyst Activator Build | -11 -10 -9 -8 -7 -7 -6 -5 -5 -5 -5 ------- Run | Yrd Mat Mat Mat Fac DSF Fac Fac Upp Upp War Slots Evolved 10 | . . 2 2 2 . 2 2 . . . Power 1 | . . . . . . 1 . . . . Propulsion 3 | . . . . 1 . 1 1 . . . Utility 4 | . . . 2 1 . . 1 . . . Weapon 2 | . . 2 . . . . . . . . Parts Attached 71 | 7 7 4 5 4 8 2 1 8 5 20 Power 8 | 1 . 2 . . 1 1 . 1 . 2 Engine 6 | 1 . 2 . . . 1 . . . 2 Core 2 | . . . . . 1 . . 1 . . Reactor . | . . . . . . . . . . . Propulsion 18 | 2 2 . 2 1 . . . 2 2 7 Treads 11 | . 2 . 2 1 . . . . 1 5 Leg 6 | 2 . . . . . . . 2 . 2 Wheel 1 | . . . . . . . . . 1 . Hover . | . . . . . . . . . . . Flight . | . . . . . . . . . . . Utility 21 | 2 3 . 3 1 1 1 1 4 1 4 Device 6 | 1 . . . . . 1 . 1 1 2 Storage 3 | 1 2 . . . . . . . . . Processor 8 | . 1 . 3 . . . . 3 . 1 Hackware . | . . . . . . . . . . . Protection 4 | . . . . 1 1 . 1 . . 1 Artifact . | . . . . . . . . . . . Weapon 24 | 2 2 2 . 2 6 . . 1 2 7 Energy Gun 8 | 2 . . . . . . . . . 6 Energy Cannon . | . . . . . . . . . . . Ballistic Gun . | . . . . . . . . . . . Ballistic Cannon 15 | . 2 2 . 2 6 . . 1 2 . Launcher 1 | . . . . . . . . . . 1 Special Weapon . | . . . . . . . . . . . Impact Weapon . | . . . . . . . . . . . Slashing Weapon . | . . . . . . . . . . . Piercing Weapon . | . . . . . . . . . . . Special Melee Weapon . | . . . . . . . . . . . Unidentified Prototypes 4 | . . 1 . . . . . . 1 2 Parts Lost 36 | . . . . . . . . 12 12 12 Power 5 | . . . . . . . . 2 1 2 Propulsion 11 | . . . . . . . . 4 4 3 Utility 8 | . . . . . . . . 2 2 4 Weapon 12 | . . . . . . . . 4 5 3 Highest Loss Streak 12 | . . . . . . . . 11 10 12 To Critical Strikes . | . . . . . . . . . . . Average Backups 10 | 1 7 10 12 13 13 10 12 12 14 4 Power 1 | . . 1 2 2 2 1 2 1 1 . Propulsion . | . . . . 2 1 . . . . . Utility 2 | . 2 3 1 1 . . 1 2 7 . Weapon 5 | 1 3 5 6 7 7 8 8 7 4 2 Tool/Special . | . . . . . . . . . . . Unused Backups 17 | . 1 . . . 4 . . . 8 4 Power . | . . . . . . . . . . . Propulsion . | . . . . . . . . . . . Utility 6 | . . . . . 1 . . . 4 1 Weapon 10 | . 1 . . . 3 . . . 4 2 Tool/Special 1 | . . . . . . . . . . 1 Average Slot Usage (%) 86 | . 99 98 99 98 100 99 94 87 72 72 Engine 6 | . 14 10 9 7 4 6 5 4 . 10 Core 2 | . . . . . 2 6 5 4 4 . Treads 13 | . 26 22 18 23 23 25 23 17 3 1 Leg 3 | . 1 . . . . . . 1 10 6 Hover 2 | . . . . . . . . . . 9 Device 4 | . 3 . . . . 4 5 6 10 4 Storage 5 | . 14 11 9 7 7 6 5 5 4 . Processor 15 | . 10 11 26 23 23 14 11 12 16 15 Protection 3 | . . . . 5 7 6 11 8 . 3 Energy Gun 4 | . 5 . . . . . . . . 16 Ballistic Cannon 19 | . 22 42 36 30 30 26 23 21 17 . Peak Build Rating 100 | 9 14 18 26 32 43 51 56 58 59 100 Average Rating 44 | 5 12 16 23 31 39 49 56 54 53 61 On Entrance 28 | . 9 13 18 26 32 42 51 56 55 12 Avg Prop Armor Cover (%) 7 | . . . . . . . . . 7 8 Naked Turns . | . . . . . . . . . . . Heaviest Build 76 | 12 31 42 42 51 59 68 76 76 52 58 Greatest Support 135 | 20 46 46 46 64 64 87 87 87 35 135 Greatest Overweight (x) 13 | . . . . . . . . 2 13 2 Average Overweight (x) . | . . . . . . . . . 1 . Largest Inventory Capacity 15 | 8 15 15 15 15 15 15 15 15 15 5 Average Capacity 12 | 6 10 15 15 15 15 15 15 15 14 5 Most Carried 15 | 2 10 12 15 14 15 13 12 15 15 5 Average Carried 10 | 1 7 10 12 13 13 10 12 12 14 4 Final Capacity 15 | 8 15 15 15 15 15 15 15 15 5 5 Final Carried 15 | 2 9 12 15 14 12 13 12 15 5 5 Class Distribution -------------------- 49% | Gunner 20% | Tank 16% | Mutant 5% | Commander-Gunner 4% | Skirmisher Dominant Class ---------------- Mutant | -10/Materials Gunner | -9/Materials Gunner | -8/Materials Gunner | -7/Factory Gunner | -7/DSF Skirmisher | -6/Factory Tank | -5/Factory Tank | -5/Upper Caves Gunner | -5/Upper Caves Gunner | -5/Warlord Resources | -11 -10 -9 -8 -7 -7 -6 -5 -5 -5 -5 ----------- Run | Yrd Mat Mat Mat Fac DSF Fac Fac Upp Upp War Matter Collected 2443 | 270 174 248 324 . 256 . . 519 253 399 Remotely . | . . . . . . . . . . . Salvage Created 1894 | 97 121 262 426 . 159 . . 250 107 472 Parts 73 | 7 4 12 14 . 9 . . 10 2 15 Haulers Intercepted 6 | . 1 4 . . . . . 1 . . Recyclers Shooed 1 | . . 1 . . . . . . . . Parts Field Recycled . | . . . . . . . . . . . Retrieved Matter . | . . . . . . . . . . . Parts Self-Destructed 9 | . . . . . . . . 9 . . Prevented . | . . . . . . . . . . . Parts Restored . | . . . . . . . . . . . Kills | -11 -10 -9 -8 -7 -7 -6 -5 -5 -5 -5 ------- Run | Yrd Mat Mat Mat Fac DSF Fac Fac Upp Upp War Combat Hostiles Destroyed 56 | . 3 3 13 . 6 . . 11 3 17 Guns 1 | . . . . . . . . . . 1 Cannons 39 | . 3 3 13 . 6 . . 11 3 . AOE 16 | . . . . . . . . . . 16 Classes Destroyed 15 | 2 4 1 2 . 1 . . 1 1 3 Tunneler 1 | 1 . . . . . . . . . . Hauler 6 | . 1 4 . . . . . 1 . . Recycler 2 | 1 . . 1 . . . . . . . Operator 2 | . 1 1 . . . . . . . . Watcher 3 | . 2 . 1 . . . . . . . Swarmer 12 | . . . 4 . 3 . . 5 . . Saboteur 2 | . . . . . . . . . . 2 Grunt 28 | . 3 2 7 . . . . 5 . 11 Duelist 1 | . . . 1 . . . . . . . Protector 3 | . . . . . . . . . . 3 Sentry 3 | . . 1 1 . . . . . 1 . Specialist 4 | . . . . . 3 . . . . 1 Hunter 4 | . . . . . . . . 1 2 1 Programmer 2 | . . . . . . . . . . 2 Decomposer 1 | . . . . . . . . . 1 . Packrat 1 | . . . . . . . . . 1 . Best Kill Streak 11 | 2 3 3 6 . 3 . . 5 1 11 Combat Bots Only 11 | . 2 1 4 . 3 . . 5 1 11 Max Kills in Single Turn 7 | 1 1 2 1 . 1 . . 1 1 7 Gunslinging . | . . . . . . . . . . . Exploded 7 | . . . . . . . . . . 7 Melee . | . . . . . . . . . . . Uniques/NPCs Destroyed . | . . . . . . . . . . . Combat | -11 -10 -9 -8 -7 -7 -6 -5 -5 -5 -5 -------- Run | Yrd Mat Mat Mat Fac DSF Fac Fac Upp Upp War Hostile Shots Fired 556 | . 10 7 66 . 32 . . 141 138 162 Missed 156 | . 4 . 22 . 12 . . 21 46 51 Hits 400 | . 6 7 44 . 20 . . 120 92 111 Melee 11 | . . . . . . . . . 4 7 Projectile 389 | . 6 7 44 . 20 . . 120 88 104 Critical Strikes 15 | . . 1 3 . . . . 3 4 4 Actively Blocked 1 | . . . . . . . . . . 1 Part Disruptions 1 | . . . . . . . . . . 1 Actively Blocked 1 | . . . . . . . . . . 1 Damage Taken 7221 | . 67 91 596 . 373 . . 2122 1689 2283 Core 1081 | . 11 . 66 . . . . 155 587 262 Absorbed by Shields 359 | . . . . . . . . . . 359 Redirected to Shielding 107 | . . . . . . . . . . 107 Regen/Repaired (Parts) 25 | . . . . . . . . . . 25 Core Remaining (%) 97 | 100 95 100 88 . 100 100 . . . . Volleys Fired 125 | 2 15 13 21 . 9 . . 39 17 9 Largest 4 | 2 2 4 4 . 4 . . 4 4 4 Hottest 265 | 90 90 126 126 . 160 . . 160 157 265 Shots Fired 371 | 4 30 52 83 . 36 . . 86 55 25 Gun 27 | 4 4 . . . . . . . . 19 Cannon 338 | . 26 52 83 . 36 . . 86 55 . Launcher 6 | . . . . . . . . . . 6 Special . | . . . . . . . . . . . Kinetic 338 | . 26 52 83 . 36 . . 86 55 . Thermal 27 | 4 4 . . . . . . . . 19 Explosive . | . . . . . . . . . . . Electromagnetic . | . . . . . . . . . . . Entropic 6 | . . . . . . . . . . 6 Robot Hit Streak 14 | 3 10 12 12 . 14 . . 11 14 7 Robot Miss Streak 3 | . 2 2 2 . 2 . . 3 2 2 Penetration Max . | . . . . . . . . . . . Secondary Targets . | . . . . . . . . . . . Shots Hit Robots 236 | 3 22 30 48 . 18 . . 59 39 17 Core Hits 110 | 3 7 9 25 . 6 . . 19 11 30 Critical Kills . | . . . . . . . . . . . Critical Parts Destroyed . | . . . . . . . . . . . Critical Strikes 9 | . 1 . 4 . 1 . . 3 . . Blast 9 | . 1 . 4 . 1 . . 3 . . Melee Attacks . | . . . . . . . . . . . Impact . | . . . . . . . . . . . Slashing . | . . . . . . . . . . . Piercing . | . . . . . . . . . . . Sneak Attacks . | . . . . . . . . . . . Combat Hostiles . | . . . . . . . . . . . Follow-up Attacks . | . . . . . . . . . . . Damage Inflicted 9995 | 37 471 524 1036 . 446 . . 1629 819 5033 Guns 367 | 37 38 . . . . . . . . 292 Cannons 4870 | . 433 524 1024 . 446 . . 1624 819 . Explosions 4740 | . . . . . . . . . . 4740 Melee . | . . . . . . . . . . . Ramming 18 | . . . 12 . . . . 5 . 1 Kinetic 4870 | . 433 524 1024 . 446 . . 1624 819 . Thermal 367 | 37 38 . . . . . . . . 292 Explosive . | . . . . . . . . . . . Electromagnetic . | . . . . . . . . . . . Impact . | . . . . . . . . . . . Slashing . | . . . . . . . . . . . Piercing . | . . . . . . . . . . . Entropic 4740 | . . . . . . . . . . 4740 Highest Corruption 1 | . . . . . . . . . . 1 Average Corruption 1 | . . . . . . . . . . 1 Corruption Purged . | . . . . . . . . . . . Corruption Blocked . | . . . . . . . . . . . Overload Shots . | . . . . . . . . . . . Overflow Damage 270 | . 21 16 10 . 9 . . 28 23 163 Projectiles 107 | . 21 16 10 . 9 . . 28 23 . Explosions 163 | . . . . . . . . . . 163 Melee . | . . . . . . . . . . . Knockbacks 55 | . 5 5 13 . 6 . . 16 10 . Impact . | . . . . . . . . . . . Kinetic 53 | . 5 4 12 . 6 . . 16 10 . Secondary 2 | . . 1 1 . . . . . . . Self-Inflicted Damage 156 | . . . . . . . . . . 156 Shots 1 | . . . . . . . . . . 1 Rammed 7 | . . . 4 . . . . 1 . 2 Targets Rammed 7 | . . . 4 . . . . 1 . 2 Kicked . | . . . . . . . . . . . Crushed . | . . . . . . . . . . . Highest Temperature 426 | 60 60 160 312 . 66 . . 426 93 299 Average Temperature 117 | 31 18 57 101 . 24 . . 200 51 149 Received Heat Transfer 1578 | . 36 54 351 . . . . 678 306 153 Effects 11 | . . . 4 . . . . 7 . . Shutdowns 4 | . . . 1 . . . . 3 . . Energy Bleed 1 | . . . 1 . . . . . . . Interference 2 | . . . 2 . . . . . . . Matter Decay 1 | . . . . . . . . 1 . . Short Circuit 1 | . . . . . . . . 1 . . Damage (minor) 2 | . . . . . . . . 2 . . Siege Activations . | . . . . . . . . . . . Martial Activations . | . . . . . . . . . . . Shielding Activations . | . . . . . . . . . . . Robots Disrupted . | . . . . . . . . . . . Combat Hostiles . | . . . . . . . . . . . Robots Corrupted . | . . . . . . . . . . . Combat Hostiles . | . . . . . . . . . . . Parts Fried . | . . . . . . . . . . . Impact Corruptions . | . . . . . . . . . . . Robots Melted . | . . . . . . . . . . . Combat Hostiles . | . . . . . . . . . . . Parts Melted . | . . . . . . . . . . . Heat Transferred 697 | 99 99 . . . . . . . . 499 Parts Sabotaged . | . . . . . . . . . . . Parts Stolen . | . . . . . . . . . . . Parts Stripped . | . . . . . . . . . . . Power Chain Reactions . | . . . . . . . . . . . Alert | -11 -10 -9 -8 -7 -7 -6 -5 -5 -5 -5 ------- Run | Yrd Mat Mat Mat Fac DSF Fac Fac Upp Upp War Maximum Alert Level 1 | . . . 1 . 1 . . . . . Low Security (%) 87 | 100 100 100 59 100 72 100 100 . . . Level 1 12 | . . . 40 . 27 . . . . . Level 2 . | . . . . . . . . . . . Level 3 . | . . . . . . . . . . . Level 4 . | . . . . . . . . . . . Level 5 . | . . . . . . . . . . . High Security . | . . . . . . . . . . . Max Security . | . . . . . . . . . . . Peak Influence 305 | 10 46 43 305 131 273 142 . . . . Initial 142 | . . . . 129 88 142 . . . . Average 68 | . 13 10 143 128 172 61 . . . . Influence Increases 1616 | 10 97 121 430 17 185 . . 245 70 441 Destroy 0b10 Robot/C 1140 | . 60 60 260 . 120 . . 220 60 360 Destroy 0b10 Robot/NC 80 | 10 20 25 10 . . . . 5 . 10 Destroy Leader 136 | . 16 28 42 . 20 . . 20 10 . Allied During Kill 56 | . . . . . . . . . . 56 Successful Hack 27 | . . 5 5 17 . . . . . . Disable Machine 60 | . . . 45 . 15 . . . . . Destroy Structure 12 | . 1 3 8 . . . . . . . Lose Combat Pursuer 105 | . . . 60 . 30 . . . . 15 Influence Decreases 1371 | 10 97 121 145 176 38 273 . 245 70 196 Entered New Map 325 | . . . . 156 38 131 . . . . Time Decay 673 | 10 97 116 145 20 . 60 . 137 52 36 Lost Part 246 | . . . . . . . . 108 18 120 Lost Ally 40 | . . . . . . . . . . 40 Purge Threat 87 | . . 5 . . . 82 . . . . Squads Dispatched 4 | . 1 1 1 . 1 . . . . . Investigation 1 | . . . 1 . . . . . . . Extermination . | . . . . . . . . . . . Reinforcement 3 | . 1 1 . . 1 . . . . . Assault . | . . . . . . . . . . . Garrison . | . . . . . . . . . . . Intercept . | . . . . . . . . . . . Searches Triggered . | . . . . . . . . . . . Construction Impeded . | . . . . . . . . . . . Haulers Reinforced . | . . . . . . . . . . . Active Scanning Responses . | . . . . . . . . . . . Cargo Convoy Interrupts . | . . . . . . . . . . . Stealth | -11 -10 -9 -8 -7 -7 -6 -5 -5 -5 -5 --------- Run | Yrd Mat Mat Mat Fac DSF Fac Fac Upp Upp War Distress Signals 2 | . 1 . 1 . . . . . . . Communications Jammed . | . . . . . . . . . . . Distress Signals . | . . . . . . . . . . . Times Spotted 109 | . 7 6 20 . 7 1 2 11 7 48 Peak Tracking Total 19 | . 4 2 6 . 4 1 4 5 5 19 Tactical Retreats 5 | . . . 2 . 2 . . . . 1 Traps | -11 -10 -9 -8 -7 -7 -6 -5 -5 -5 -5 ------- Run | Yrd Mat Mat Mat Fac DSF Fac Fac Upp Upp War Traps Triggered 1 | . . . . . 1 . . . . . Indirectly . | . . . . . . . . . . . Trap Hack Attempts . | . . . . . . . . . . . Triggered . | . . . . . . . . . . . Disarmed . | . . . . . . . . . . . Reprogrammed . | . . . . . . . . . . . Reused . | . . . . . . . . . . . Traps Extracted . | . . . . . . . . . . . Installed . | . . . . . . . . . . . Triggered . | . . . . . . . . . . . Machines | -11 -10 -9 -8 -7 -7 -6 -5 -5 -5 -5 ---------- Run | Yrd Mat Mat Mat Fac DSF Fac Fac Upp Upp War Machines Disabled 5 | . . . 3 . 1 . . . . 1 Max in Single Turn 1 | . . . 1 . 1 . . . . 1 Machines Repaired . | . . . . . . . . . . . Machines Dismantled . | . . . . . . . . . . . Machines Sabotaged . | . . . . . . . . . . . Overloaded Fab Kills . | . . . . . . . . . . . Hacking | -11 -10 -9 -8 -7 -7 -6 -5 -5 -5 -5 --------- Run | Yrd Mat Mat Mat Fac DSF Fac Fac Upp Upp War Machines Accessed 15 | . 1 4 3 2 . 2 . 1 . 2 Terminals 10 | . 1 3 3 1 . 2 . . . . Fabricators . | . . . . . . . . . . . Repair Stations . | . . . . . . . . . . . Recycling Units . | . . . . . . . . . . . Scanalyzers 2 | . . 1 . 1 . . . . . . Garrison Access . | . . . . . . . . . . . Total Hacks 36 | . 3 15 6 3 . 5 . 1 . 3 Successful 15 | . . 6 1 2 . 2 . 1 . 3 Failed 19 | . 3 8 5 . . 3 . . . . Catastrophic 4 | . . . 3 . . 1 . . . . Database Lockouts 2 | . . 1 . 1 . . . . . . Manual 12 | . . 6 6 . . . . . . . Terminals 26 | . 3 11 6 1 . 5 . . . . Fabricators . | . . . . . . . . . . . Repair Stations . | . . . . . . . . . . . Recycling Units . | . . . . . . . . . . . Scanalyzers 6 | . . 4 . 2 . . . . . . Garrison Access . | . . . . . . . . . . . Terminal Hacks 9 | . . 2 . 1 . 2 . 1 . 3 Record 2 | . . . . . . . . . . 2 Open Door 2 | . . . . . . . . 1 . 1 Open DSF 2 | . . . . 1 . 1 . . . . Unreport Threat 2 | . . 1 . . . 1 . . . . Zone Layout 1 | . . 1 . . . . . . . . Fabricator Hacks . | . . . . . . . . . . . Repair Station Hacks . | . . . . . . . . . . . Recycling Unit Hacks . | . . . . . . . . . . . Scanalyzer 4 | . . 3 . 1 . . . . . . Insert Component 1 | . . 1 . . . . . . . . Analyze 1 | . . 1 . . . . . . . . Retrieve Study 2 | . . 1 . 1 . . . . . . Garrison Access Hacks . | . . . . . . . . . . . Unauthorized Hacks 2 | . . 1 1 . . . . . . . Terminals 2 | . . 1 1 . . . . . . . Botnet 2 | . . 1 1 . . . . . . . Fabricators . | . . . . . . . . . . . Repair Stations . | . . . . . . . . . . . Recycling Units . | . . . . . . . . . . . Scanalyzers . | . . . . . . . . . . . Garrison Access . | . . . . . . . . . . . Data Cores Recovered . | . . . . . . . . . . . Used . | . . . . . . . . . . . Hacking Detections 9 | . 1 4 3 . . 1 . . . . Full Trace Events 1 | . . . 1 . . . . . . . Feedback Events . | . . . . . . . . . . . Feedback Blocked . | . . . . . . . . . . . Robot Schematics Acquired . | . . . . . . . . . . . Robots Built . | . . . . . . . . . . . Authchips . | . . . . . . . . . . . Time . | . . . . . . . . . . . Total Robot Build Rating . | . . . . . . . . . . . Part Schematics Acquired 1 | . . 1 . . . . . . . . Parts Built . | . . . . . . . . . . . Authchips . | . . . . . . . . . . . Time . | . . . . . . . . . . . Total Part Build Rating . | . . . . . . . . . . . Part Studies Acquired 2 | . . 1 . 1 . . . . . . Parts Repaired . | . . . . . . . . . . . Time . | . . . . . . . . . . . Parts Recycled . | . . . . . . . . . . . Recycled Matter . | . . . . . . . . . . . Retrieved Matter . | . . . . . . . . . . . Retrieved Components . | . . . . . . . . . . . Parts Scanalyzed 1 | . . 1 . . . . . . . . Part Schematics Acquired 1 | . . 1 . . . . . . . . Parts Damaged . | . . . . . . . . . . . Bothacking | -11 -10 -9 -8 -7 -7 -6 -5 -5 -5 -5 ------------ Run | Yrd Mat Mat Mat Fac DSF Fac Fac Upp Upp War Used RIF Installer . | . . . . . . . . . . . Robots Hacked . | . . . . . . . . . . . Non-combat . | . . . . . . . . . . . Combat . | . . . . . . . . . . . Robot Hacks Applied . | . . . . . . . . . . . Relay Couplers Released . | . . . . . . . . . . . Fabnet Peak Effective % . | . . . . . . . . . . . Robots Rewired 5 | . . . . . . . . . . 5 Allies Hacked . | . . . . . . . . . . . Hacks Repelled . | . . . . . . . . . . . Allies | -11 -10 -9 -8 -7 -7 -6 -5 -5 -5 -5 -------- Run | Yrd Mat Mat Mat Fac DSF Fac Fac Upp Upp War Total Allies 5 | . . . . . . . . . . 5 Largest Group 5 | . . . . . . . . . . 5 Highest-Rated Group 240 | . . . . . . . . . . 240 Highest-Rated Ally 64 | . . . . . . . . . . 64 Total Orders . | . . . . . . . . . . . Ally Attacks 34 | . . . . . . . . . . 34 Total Damage 641 | . . . . . . . . . . 641 Kills 3 | . . . . . . . . . . 3 Allies Corrupted . | . . . . . . . . . . . Allies Melted 2 | . . . . . . . . . . 2 Intel | -11 -10 -9 -8 -7 -7 -6 -5 -5 -5 -5 ------- Run | Yrd Mat Mat Mat Fac DSF Fac Fac Upp Upp War Active Infowar (turns) 3468 | 27 70 . 338 42 177 252 34 1016 535 977 Optics 3371 | . . . 338 42 177 252 34 1016 535 977 IFF 1752 | . . . . . . 201 34 1016 501 . Terrain 789 | 27 70 . . . . . . . . 692 Robot Analysis Total . | . . . . . . . . . . . Derelict Logs Recovered 3 | . . . . . . . . 2 1 . Drone Launches . | . . . . . . . . . . . Drone Recoveries . | . . . . . . . . . . . Exploration | -11 -10 -9 -8 -7 -7 -6 -5 -5 -5 -5 ------------- Run | Yrd Mat Mat Mat Fac DSF Fac Fac Upp Upp War Turns Passed 4169 | 68 311 380 366 42 177 252 34 1016 535 988 Spaces Moved 2160 | 46 141 191 165 23 69 147 22 487 253 616 Core 145 | 12 . . . . . . . . 32 101 Treads 1195 | . 135 191 165 23 69 147 22 416 . 27 Legs 733 | 34 6 . . . . . . 71 185 437 Wheels 36 | . . . . . . . . . 36 . Hover 51 | . . . . . . . . . . 51 Flight . | . . . . . . . . . . . Fastest Speed 50 | 50 120 160 145 153 153 155 155 155 50 50 Average Speed 152 | 101 158 160 155 153 153 155 155 164 170 133 Slowest Speed 700 | 120 160 160 160 153 153 155 155 260 700 260 Overloaded Moves . | . . . . . . . . . . . Propulsion Burnouts . | . . . . . . . . . . . Robots Hopped . | . . . . . . . . . . . Potential Cave-ins . | . . . . . . . . . . . Cave-ins Triggered . | . . . . . . . . . . . Exploration Rate (%) 28 | 4 22 22 28 1 46 7 2 54 45 78 Regions Visited 10 Branch Regions 3 Pre-discovered Areas . | . . . . . . . . . . . Known Exits Taken 2 | . . . . 1 . . . 1 . . Unknown Exits Taken 7 | 1 1 1 1 . . 1 1 . 1 . Scrap Searched 2 | . . . . . . . . 1 1 . Spaces Dug . | . . . . . . . . . . . Terrain Destroyed 128 | . 1 1 6 . . . . 11 4 105 Melee . | . . . . . . . . . . . Projectile 23 | . 1 1 6 . . . . 11 4 . AOE 105 | . . . . . . . . . . 105 Terrain Rammed . | . . . . . . . . . . . Walls Destroyed . | . . . . . . . . . . . Machines Disabled . | . . . . . . . . . . . Actions | -11 -10 -9 -8 -7 -7 -6 -5 -5 -5 -5 --------- Run | Yrd Mat Mat Mat Fac DSF Fac Fac Upp Upp War Total 2776 | 59 202 234 218 28 127 171 22 634 319 762 Wait 254 | 3 19 20 20 . 20 18 . 88 40 26 Move 2150 | 45 140 190 164 22 68 146 21 486 252 616 Hop . | . . . . . . . . . . . Pick Up 45 | 2 9 4 3 1 5 3 . 9 2 7 Fast Attach 36 | 7 4 2 1 . . 1 . 3 3 15 Attach 22 | . 1 2 2 2 . 2 1 6 2 4 Detach 7 | . 4 2 1 . . . . . . . Swap 18 | . 2 . 2 3 9 . . 1 . 1 Drop 44 | . 8 1 . . 16 1 . 1 3 14 Fire 125 | 2 15 13 21 . 9 . . 39 17 9 Melee . | . . . . . . . . . . . Ram . | . . . . . . . . . . . Kick . | . . . . . . . . . . . Crush 7 | . . . 4 . . . . 1 . 2 Escape Stasis . | . . . . . . . . . . . Rewire 68 | . . . . . . . . . . 68 Trap . | . . . . . . . . . . . Miscellaneous . | . . . . . . . . . . . Route ------- -11/Scrapyard -10/Materials -9/Materials -8/Materials -7/Factory -7/DSF -6/Factory -5/Factory -5/Upper Caves -5/Upper Caves (discovered 2 exits: [*Fac] / *War) -5/Warlord History --------- Turn | Location | Event 4 | -11/Scrapyard | Discovered new exit (range 15) 69 | -11/Scrapyard | Entered Materials 308 | -10/Materials | Build established: Mutant 348 | -10/Materials | Discovered new exit (range 16) 380 | -10/Materials | Entered another Materials area 380 | -9/Materials | Evolved 2 slots: Weapon x2 551 | -9/Materials | Central database locked down 686 | -9/Materials | Build established: Gunner 735 | -9/Materials | Discovered new exit (range 16) 760 | -9/Materials | Entered another Materials area 760 | -8/Materials | Evolved 2 slots: Utility x2 1065 | -8/Materials | Discovered new exit (range 6) 1126 | -8/Materials | Entered Factory 1126 | -7/Factory | Evolved 2 slots: Propulsion x1, Utility x1 1148 | -7/Factory | Central database locked down 1168 | -7/Factory | Identified exit to DSF 1168 | -7/Factory | Entered DSF 1191 | -7/DSF | Additional patrols routed to DSF 1315 | -7/DSF | Discovered new exit (range 20) 1345 | -7/DSF | Entered Factory 1345 | -6/Factory | Evolved 2 slots: Power x1, Propulsion x1 1546 | -6/Factory | Discovered new exit (range 9) 1597 | -6/Factory | Entered another Factory area 1597 | -5/Factory | Evolved 2 slots: Propulsion x1, Utility x1 1602 | -5/Factory | Discovered new exit (range 19) 1631 | -5/Factory | Entered Upper Caves 1645 | -5/Upper Caves | Identified exit to Upper Caves 1700 | -5/Upper Caves | Learned 4 Factory zone layouts 1903 | -5/Upper Caves | Build established: Tank 2495 | -5/Upper Caves | Lost 11 parts (2p3n2u4w) 2573 | -5/Upper Caves | Found Imp. Powered Armor 2647 | -5/Upper Caves | Entered another Upper Caves area 2686 | -5/Upper Caves | Spotted B-75 Beast 2691 | -5/Upper Caves | Discovered new exit (range 5) 2709 | -5/Upper Caves | Attracted the attention of an 0b10 checkpoint 2736 | -5/Upper Caves | Build established: Gunner 2790 | -5/Upper Caves | Encountered a Warlord checkpoint 3162 | -5/Upper Caves | Core integrity fell below 50% 3172 | -5/Upper Caves | Discovered new exit (range 17) 3182 | -5/Upper Caves | Entered Warlord 3202 | -5/Warlord | Lost 10 parts (1p3n2u4w) 3425 | -5/Warlord | Visited the Vortex Lab 3430 | -5/Warlord | Build established: Mutant 3441 | -5/Warlord | Warlord's base attacked by MAIN.C 3444 | -5/Warlord | Found Prototype Launcher 3446 | -5/Warlord | Found Prototype Energy Gun 3446 | -5/Warlord | Identified Vortex Rail 3450 | -5/Warlord | Found Vortex Rail 3459 | -5/Warlord | Found Prototype Energy Gun 3463 | -5/Warlord | Found Prototype Energy Gun 3737 | -5/Warlord | Build established: Gunner 3791 | -5/Warlord | Warlord forces counterattacked 4060 | -5/Warlord | Identified Vortex Catalyst Activator 4080 | -5/Warlord | Core integrity fell below 20% 4110 | -5/Warlord | Lost 4 allies 4116 | -5/Warlord | Warlord base infiltrated, sounded retreat 4129 | -5/Warlord | Spotted Striker 4143 | -5/Warlord | Spotted Striker 4145 | -5/Warlord | Destroyed 11 combat bots 4152 | -5/Warlord | Spotted Striker 4170 | -5/Warlord | Destroyed by H-66 Slayer with Heavy Assault Rifle Last Messages --------------- 04161_ Slammed into S-27 Virus. 04162_ Slug penetrates Wall. 04162_ Penetrated by Slug. 04162_ Arm. Medium Treads destroyed. 04163_ Critical hit (Burn: +50). 04163_ Acquired 72 matter. 04163_ S-27 Virus destroyed. 04165_ Penetrated by Slug. 04166_ Beamcaster destroyed. 04167_ Slug penetrates Wall. 04167_ Penetrated by Slug. 04167_ Arm. Medium Treads destroyed. 04168_ Slug penetrates S-27 Virus. 04168_ S-27 Virus destroyed. 04169_ Arm. Medium Treads destroyed. 04169_ Slammed into H-77 Assassin. 04170_ S-27 Virus destroyed. 04170_ G-67 Veteran destroyed. 04170_ S-43 Plague destroyed. 04170_ Penetrated by Slug. Map ----- +----------------------------------------------------+ | ?????????#?????????????????????????? | | ????????#??????????????????????????? | | ???????????????????????????????????? | | ???????????????????????????????????? | | ???????????????????????????????????? | | ???????????????????????????????????? | | ??#????????? ??????????????????????? | | ?????????? ?? ?????????????????????? | | ?????????#???? ???????????????????? | | ?##???????????? ???????????????????? | | ???#???????????? ??"???????????????? | | ????????#??????"# ?????##??????????? | | ????????????????# "?### ??????????? | | ????#??#???????## ?? ??????##??? | | ?????????????????? ### ??#??? ##? | | ""???#######??#???? ?? ??? ?? | | ""#?## ###?#????# ## ??? #? | | ""#?# #??????# # ??? "## | | ""### ##??????# "#??? " ? | | ""# " ######??# #??? ;## | | ""#=! " ###?## ##?" ;# | | ""=%= #??## ##; ;;# | | "!=/] ##??## g ; ;;#? | | "%%= #####h < | | %!%% % % %= % [ [##hggg < | | %%! % K===g@g;;g #??? | | * =%!% % %%K!K*#### #??? | | * * %= ! ==%%#;#?# #??? | | = = = s[ ###?# ##?? | | " = = = = #?### #?? | | " !]"""!""; # # #### # #?? | | ""#"""" #### ######### #?# #?? | | ""#######??##???????? ### #?? | | ""#??????#?????????? ### ##?? | | ""#????????????????# ##?# #??? | | ""#???????????????? ???## ##??? | | ""#??????????#????# ????## #???? | | ?????#????????????# #?????# #???? | | #????????#????????# ??????## ##??? | | ?????#????????????# ??????## #??? | | ????????#????????? ?????## #??? | | ???#?#????#??????? ?????# #??? | | ??#???????#?????? #??????# #??? | | ?##????#???#??????????????# #??? | | ??????????????????????????# #??? | | ?????#????????????????????## ##??? | | ??????????????????????????? #???? | | ???#??????????????????????? ##???? | | ??#???????#????????????????####????? | | #??????????????????????????????????? | +----------------------------------------------------+ Best States ------------- Heat Dissipation 59 Energy Generation 29 Energy Capacity 900 Matter Stores 300 Matter Capacity 300 Sight Range 20 Terrain Scan Range 24 Terrain Scan Density 10 Armor Coverage 450 Propulsion Shielding 66 Evasion (%) 55 Targeting Accuracy 18 Armor Integrity Analysis 40 Recoil Reduction 4 Matter Filtering 50 Item Schematics ----------------- Hvy. Ion Engine | -9/Materials | Scanalyzed Robot Schematics ------------------ None Fabricated ------------ Nothing Repaired ---------- Nothing Studied --------- Imp. Light Cannon | -9/Materials | Hacked Adv. Treads | -7/Factory | Hacked Alien Tech Used ----------------- None Achievements -------------- None Challenges ------------ None Game ------ Seed SurgeCannonBeamcaster Manual? 0 Play Time 00:33:00 Cumulative 222.9 hours Start 2026.07.15 @ 22:13:34 End 2026.07.16 @ 22:25:26 Sessions 5 Manual Loads 0 Difficulty Rogue Special Mode None Game No. 302 Rogue 302 Adventurer 0 Explorer 0 Win Type - Total 3 Types 2/0/0/1/0/0/0/0/0/0 Lore% 76 Gallery% 63 Achievement% 51 Wizard Run 0 Options --------- Layout 2 ASCII 0 Keyboard 0 Movement Mouse Keybinds 0 Fullscreen 1 Font 24/Smallcaps Map View 50x44 Zoom Use 2% Tactical HUD 1 Map Filters NONE Filters NONE Steam 1 RUN: d3c2f6ea-d5c0-4e23-94b4-5a3f879c7116